bitfinex/quotes_SOLUSD_20220128
["timestamp","ask_amount","ask_price","bid_price","bid_amount"]
[1643337157200,0.25,89.987,89.92,6.0]
[1643337157400,0.25,89.987,89.921,111.45]
[1643337157602,1.53528648,89.995,89.931,6.0]
[1643337157800,1.53528648,89.995,89.932,0.25]
[1643337158100,1.53528648,89.995,89.94,16.01]
[1643337158301,1.53528648,89.998,89.941,8.51253662]
[1643337158504,1.53528648,89.999,89.941,8.51253662]
[1643337158902,0.25,89.998,89.941,8.51253662]
[1643337159101,1.53528648,89.997,89.941,8.51253662]
[1643337159305,0.25,89.996,89.942,111.2]
[1643337159502,0.25,89.996,89.941,8.51253662]
[1643337160304,1.53528648,89.998,89.941,8.51253662]
[1643337160604,1.53528648,90.009,89.951,6.0]
[1643337160806,1.53528648,90.007,89.952,0.25]
[1643337161104,1.53528648,90.006,89.952,0.25]
[1643337161305,1.53528648,90.006,89.952,111.45]
[1643337161605,1.53528648,90.014,89.952,111.45]
[1643337161809,0.2,90.029,89.952,111.45]
[1643337161810,0.2,90.029,89.953,2.01090569]
[1643337162006,3.07996447,90.039,89.963,117.2]
[1643337162207,3.07996447,90.062,89.97,16.01]
[1643337162406,3.07996447,90.067,89.97,16.01]
[1643337162604,3.07996447,90.067,89.98,6.0]
[1643337162806,3.07996447,90.067,89.981,30.04906836]
[1643337163005,3.07620507,90.074,89.987,6.0]
[1643337163206,0.2,90.08,90.0,16.01]
[1643337163408,3.07242136,90.073,90.001,8.51253662]
[1643337163607,3.07242136,90.079,90.011,6.0]
[1643337163808,3.07242136,90.079,90.012,0.25]
[1643337164006,0.2,90.08,90.012,0.25]
[1643337164207,0.25,90.078,90.012,0.25]
[1643337164509,0.45,90.08,90.012,0.25]
[1643337166410,0.2,90.08,90.012,0.25]
[1643337166609,0.2,90.099,90.02,16.01]
[1643337166810,3.27996447,90.126,90.021,0.25]
[1643337167016,0.2,90.126,90.03,6.0]
[1643337167210,0.2,90.127,90.04,16.01]
[1643337167409,42.54163531,90.127,90.041,29.79906836]
[1643337167611,0.2,90.126,90.051,6.0]
[1643337167810,0.2,90.126,90.052,0.25]
[1643337168010,0.2,90.126,90.052,6.25]
[1643337168410,0.2,90.126,90.053,2.0108371]
[1643337168812,0.2,90.126,90.054,0.25]
[1643337169012,0.2,90.126,90.063,6.0]
[1643337169412,0.2,90.126,90.064,0.25]
[1643337170414,0.2,90.126,90.065,2.0108371]
[1643337170712,0.2,90.126,90.064,0.25]
[1643337170916,0.45,90.126,90.066,0.25]
[1643337171115,0.45,90.126,90.064,0.25]
[1643337171314,0.45,90.126,90.071,6.0]
[1643337171717,0.45,90.126,90.072,0.25]
[1643337171915,0.45,90.126,90.06,16.01]
[1643337172120,0.45,90.126,89.884,7.64497974]
[1643337172121,0.45,90.126,90.03,16.01]
[1643337172316,0.45,90.126,89.99,16.01]
[1643337172317,111.9,90.112,89.99,16.01]
[1643337172515,6.0,90.102,89.95,16.4706]
[1643337172716,16.01,90.1,89.95,16.01]
[1643337172917,38.97675971,90.099,89.951,28.93600835]
[1643337173119,6.0,90.09,89.951,28.93600835]
[1643337173317,29.1244,90.089,89.952,0.25]
[1643337173518,48.34163531,90.079,89.961,6.0]
[1643337173719,111.4,90.078,89.961,6.0]
[1643337173919,6.0,90.07,89.962,6.25]
[1643337174119,6.0,90.068,89.973,9.12559663]
[1643337174319,0.25,90.067,89.974,0.25]
[1643337174920,0.25,90.067,89.972,6.0]
[1643337174921,2.95669142,90.066,89.972,6.0]
[1643337175120,6.0,90.056,89.95,6.0]
[1643337175320,6.0,90.056,89.91,200.16]
[1643337175321,66.82,90.054,89.93,16.01]
[1643337175519,6.0,90.044,89.881,24.9712]
[1643337175722,16.6889,90.0,89.881,24.9712]
[1643337175920,42.54163531,89.999,89.882,32.82024166]
[1643337176121,6.0,89.989,89.882,32.82024166]
[1643337176421,0.25,89.988,89.882,32.82024166]
[1643337176620,0.25,89.988,89.883,0.25]
[1643337177025,0.25,89.988,89.892,6.0]
[1643337177328,0.25,89.988,89.893,0.25]
[1643337177920,6.0,89.989,89.892,6.0]
[1643337178321,111.2,89.988,89.892,6.0]
[1643337178521,6.0,89.978,89.892,6.0]
[1643337178721,38.77675971,89.977,89.892,6.0]
[1643337178920,0.2,89.976,89.882,32.82024166]
[1643337179324,0.45,89.976,89.883,0.25]
[1643337179925,0.2,89.976,89.883,0.25]
[1643337180123,0.2,89.976,89.882,32.82024166]
[1643337180322,6.0,89.967,89.82,11.62356816]
[1643337180524,6.0,89.967,89.83,13.35]
[1643337180825,114.15669142,89.966,89.83,13.35]
[1643337181024,6.0,89.956,89.83,13.35]
[1643337181222,42.34163531,89.955,89.831,27.54307295]
[1643337181422,0.2,89.954,89.831,27.54307295]
[1643337181622,6.0,89.945,89.832,0.25]
[1643337181829,0.25,89.944,89.841,6.0]
[1643337182224,0.25,89.944,89.842,0.25]
[1643337182625,0.2,89.954,89.85,6.0]
[1643337182833,0.45,89.954,89.852,111.2]
[1643337183226,0.45,89.954,89.853,0.25]
[1643337183626,0.2,89.965,89.862,6.0]
[1643337183925,0.2,89.965,89.87,13.35]
[1643337184128,0.2,89.973,89.88,6.0]
[1643337184326,35.01967051,89.973,89.881,27.79307295]
[1643337184527,0.2,89.972,89.881,27.79307295]
[1643337185629,0.45,89.972,89.881,27.79307295]
[1643337185831,0.2,89.973,89.891,6.0]
[1643337186029,70.8318,89.996,89.892,111.2]
[1643337186030,0.2,89.995,89.892,111.2]
[1643337186230,0.45,89.995,89.892,0.25]
[1643337186431,0.45,89.995,89.902,6.0]
[1643337186631,0.45,89.995,89.91,13.35]
[1643337186831,0.45,89.995,89.911,0.25]
[1643337187031,0.2,89.995,89.92,6.0]
[1643337187231,0.2,90.019,89.92,19.35]
[1643337187435,0.2,90.019,89.922,6.0]
[1643337187835,0.2,90.019,89.923,27.79307295]
[1643337188435,0.45,90.019,89.923,27.79307295]
[1643337188836,0.45,90.019,89.933,6.0]
[1643337189335,0.45,90.02,89.934,0.25]
[1643337190437,0.45,90.02,89.933,6.0]
[1643337191861,0.45,90.033,89.934,0.25]
[1643337192059,0.2,90.033,89.94,13.35]
[1643337192261,0.2,90.039,89.941,0.25]
[1643337192465,0.2,90.039,89.95,6.0]
[1643337192659,0.2,90.039,89.95,19.35]
[1643337192860,0.2,90.051,89.951,6.25]
[1643337193060,0.2,90.051,89.961,27.54307295]
[1643337193261,0.45,90.051,89.962,0.25]
[1643337193460,0.25,90.051,89.971,6.0]
[1643337193660,6.0,90.06,89.971,6.0]
[1643337193961,0.25,90.059,89.972,0.25]
[1643337194361,6.0,90.06,89.972,0.25]
[1643337195159,6.0,90.06,89.98,6.0]
[1643337195363,6.0,90.06,89.981,10.76853203]
[1643337195563,6.0,90.062,89.991,6.0]
[1643337195766,6.0,90.062,89.992,0.25]
[1643337195962,6.0,90.062,89.991,6.0]
[1643337196162,0.25,90.061,89.991,6.0]
[1643337196363,0.25,90.061,89.992,0.25]
[1643337199865,0.45,90.064,89.992,0.25]
[1643337201067,0.45,90.071,89.992,0.25]
[1643337202069,47.16324204,90.071,89.992,0.25]
[1643337202266,0.2,90.07,89.992,0.25]
[1643337203168,0.2,90.109,90.0,13.35]
[1643337203370,3.06675379,90.108,90.001,0.25]
[1643337203569,3.06675379,90.108,90.01,6.0]
[1643337203769,0.2,90.109,90.011,0.25]
[1643337203974,42.48262616,90.109,90.011,27.79307295]
[1643337204172,0.2,90.108,90.011,27.79307295]
[1643337204369,0.2,90.108,90.021,6.0]
[1643337204772,0.45,90.108,90.022,0.25]
[1643337205672,0.45,90.108,90.031,10.51853203]
[1643337205871,0.45,90.108,90.032,0.25]
[1643337206071,0.45,90.108,90.041,6.0]
[1643337206272,0.45,90.108,90.042,0.25]
[1643337206472,0.45,90.108,90.041,6.0]
[1643337206871,0.45,90.108,90.031,10.51853203]
[1643337207073,0.45,90.108,90.032,0.25]
[1643337207471,111.65,90.108,90.032,0.25]
[1643337207673,16.67,90.1,90.01,13.35]
[1643337207875,16.67,90.1,89.97,166.92]
[1643337207876,0.45,90.099,89.93,222.4919]
[1643337208072,6.0,90.09,89.98,13.35]
[1643337208273,3.07996447,90.088,89.937,17.62880704]
[1643337208473,3.07996447,90.084,89.95,29.8867]
[1643337208673,38.83576886,90.078,89.951,46.67405081]
[1643337208874,0.45,90.077,89.951,46.67405081]
[1643337209075,6.0,90.068,89.952,17.62880704]
[1643337209275,0.25,90.067,89.961,6.0]
[1643337209475,46.5888,90.067,89.962,6.0]
[1643337209674,0.2,90.066,89.962,6.25]
[1643337209875,42.28262616,90.056,89.972,9.01636121]
[1643337210076,0.2,90.055,89.982,6.0]
[1643337210378,0.45,90.055,89.983,0.25]
[1643337212076,6.0,90.046,89.983,0.25]
[1643337212278,0.25,90.045,89.983,0.25]
[1643337212677,0.2,90.055,89.983,0.25]
[1643337213077,0.45,90.055,89.983,0.25]
[1643337217480,0.45,90.055,89.983,16.7348]
[1643337218183,0.45,90.055,89.994,29.04524377]
[1643337218384,0.45,90.055,89.995,0.25]
[1643337222189,0.25,90.055,89.995,0.25]
[1643337222388,0.25,90.066,89.995,0.25]
[1643337222591,3.09064172,90.065,89.995,0.25]
[1643337222790,0.25,90.064,89.995,0.25]
[1643337222992,3.09064172,90.063,89.995,0.25]
[1643337223293,0.25,90.062,89.995,0.25]
[1643337224295,3.09148798,90.061,89.995,0.25]
[1643337224696,0.25,90.06,89.995,0.25]
[1643337224920,0.25,90.061,89.995,0.25]
[1643337225622,0.25,90.061,90.004,6.0]
[1643337225824,0.45,90.063,90.005,0.25]
[1643337226022,3.09150216,90.062,90.005,0.25]
[1643337226422,0.25,90.061,90.005,0.25]
[1643337226622,0.2,90.063,90.005,0.25]
[1643337228024,0.45,90.063,90.005,0.25]
[1643337229027,0.45,90.063,90.005,6.25]
[1643337229926,0.25,90.074,90.005,6.25]
[1643337230124,3.09102631,90.073,90.005,6.25]
[1643337230331,0.25,90.072,90.005,6.25]
[1643337230526,3.09102631,90.071,90.005,6.25]
[1643337230931,0.25,90.07,90.005,6.25]
[1643337231126,3.09102631,90.069,90.005,6.25]
[1643337231328,0.25,90.068,90.005,6.25]
[1643337232528,0.45,90.071,90.005,6.25]
[1643337232730,3.09087778,90.07,89.994,29.04524377]
[1643337232930,6.0,90.062,89.994,29.04524377]
[1643337233130,6.0,90.06,89.994,29.04524377]
[1643337233332,3.34087778,90.059,89.994,29.04524377]
[1643337233533,6.0,90.049,89.994,29.04524377]
[1643337233730,0.2,90.049,89.994,29.04524377]
[1643337233931,0.25,90.048,89.994,29.04524377]
[1643337234130,0.25,90.048,89.995,0.25]
[1643337234729,0.25,90.048,89.994,29.04524377]
[1643337235133,0.2,90.049,89.994,29.04524377]
[1643337235134,0.45,90.049,89.994,29.04524377]
[1643337235331,3.09231921,90.048,89.994,29.04524377]
[1643337235732,0.25,90.047,89.994,29.04524377]
[1643337236136,0.25,90.047,89.995,0.25]
[1643337236331,3.09358784,90.046,89.995,0.25]
[1643337236732,0.25,90.045,89.995,0.25]
[1643337237132,0.25,90.045,89.994,29.04524377]
[1643337237332,0.25,90.045,89.96,124.55]
[1643337237533,3.09351417,90.044,89.97,6.0]
[1643337237934,0.25,90.043,89.971,0.25]
[1643337238335,0.25,90.043,89.971,36.22254881]
[1643337238536,0.25,90.043,89.981,6.0]
[1643337238937,0.45,90.049,89.982,0.25]
[1643337239139,3.09322074,90.048,89.982,0.25]
[1643337239437,0.25,90.047,89.982,0.25]
[1643337240036,6.0,90.04,89.982,0.25]
[1643337240438,0.25,90.039,89.972,0.25]
[1643337240938,0.25,90.039,89.981,6.0]
[1643337241136,0.25,90.039,89.972,0.25]
[1643337241340,0.25,90.039,89.981,6.0]
[1643337241539,0.25,90.039,89.972,0.25]
[1643337242338,0.45,90.049,89.972,0.25]
[1643337242541,0.2,90.049,89.972,0.25]
[1643337242939,3.07996447,90.048,89.972,0.25]
[1643337243142,6.17287053,90.048,89.972,0.25]
[1643337243340,3.07996447,90.048,89.972,0.25]
[1643337243565,3.09290606,90.047,89.972,0.25]
[1643337243740,6.17287053,90.048,89.972,0.25]
[1643337243942,0.25,90.046,89.972,0.25]
[1643337244144,3.09290606,90.045,89.972,0.25]
[1643337244440,3.34290606,90.044,89.972,0.25]
[1643337244640,3.09290606,90.044,89.972,0.25]
[1643337244839,0.25,90.047,89.972,0.25]
[1643337244840,3.34290606,90.043,89.972,0.25]
[1643337245241,3.09290606,90.042,89.972,0.25]
[1643337245641,0.25,90.041,89.972,0.25]
[1643337246841,0.25,90.047,89.972,0.25]
[1643337247042,3.0904846,90.046,89.972,0.25]
[1643337247244,0.25,90.045,89.972,0.25]
[1643337247445,3.0904846,90.044,89.972,0.25]
[1643337247642,3.0904846,90.048,89.972,0.25]
[1643337247842,3.0904846,90.048,89.981,6.0]
[1643337248241,3.0904846,90.048,89.982,0.25]
[1643337248944,0.25,90.047,89.982,0.25]
[1643337249142,3.0904846,90.046,89.982,0.25]
[1643337249342,0.25,90.045,89.972,0.25]
[1643337249543,3.0904846,90.044,89.972,0.25]
[1643337249941,0.25,90.043,89.972,0.25]
[1643337251068,0.45,90.049,89.95,16.02]
[1643337251243,2.95669142,90.047,89.94,16.02]
[1643337251443,3.07996447,90.033,89.92,16.02]
[1643337251646,3.07996447,90.028,89.92,16.02]
[1643337251845,6.0,90.023,89.93,6.0]
[1643337252043,42.07928274,90.016,89.931,35.67256537]
[1643337252245,111.65,90.015,89.932,0.25]
[1643337252544,0.2,90.014,89.932,0.25]
[1643337254345,6.45,90.015,89.932,0.25]
[1643337254745,6.0,90.006,89.932,0.25]
[1643337255045,45.9885,90.014,89.932,0.25]
[1643337255245,0.25,90.005,89.932,0.25]
[1643337256346,0.45,90.013,89.932,0.25]
[1643337258051,0.45,90.013,89.931,35.67256537]
[1643337258251,111.65,90.013,89.931,35.67256537]
[1643337258451,0.2,90.012,89.931,35.67256537]
[1643337258675,0.2,90.012,89.931,52.05096537]
[1643337259077,0.45,90.013,89.931,52.05096537]
[1643337259281,0.45,90.013,89.932,0.25]
[1643337261680,0.45,90.013,89.941,6.0]
[1643337261885,0.45,90.013,89.942,0.25]
[1643337262084,0.2,90.013,89.942,6.25]
[1643337262284,0.2,90.029,89.943,111.2]
[1643337262484,0.2,90.047,89.953,6.0]
[1643337262683,0.2,90.047,89.96,16.02]
[1643337262886,3.07996447,90.055,89.961,0.25]
[1643337263100,3.27996447,90.068,89.971,2.38903961]
[1643337263387,37.48321426,90.075,89.981,111.2]
[1643337263388,0.2,90.074,89.981,111.2]
[1643337263584,0.2,90.074,89.991,27.68871338]
[1643337263785,0.2,90.074,89.992,0.25]
[1643337263984,0.2,90.074,90.0,6.0]
[1643337264184,0.45,90.074,90.0,6.0]
[1643337264390,0.45,90.074,90.001,6.25]
[1643337264785,0.2,90.074,90.001,6.25]
[1643337264985,3.07996447,90.087,90.001,6.25]
[1643337265187,3.07996447,90.088,90.001,6.25]
[1643337265387,6.16362352,90.09,90.002,111.2]
[1643337265587,6.16362352,90.09,90.012,6.0]
[1643337265792,3.08365905,90.09,90.013,121.8228916]
[1643337266088,3.07996447,90.098,90.023,6.0]
[1643337266289,3.07996447,90.1,90.024,0.25]
[1643337266488,3.07996447,90.102,90.024,0.25]
[1643337266691,3.08320186,90.115,90.024,158.4153]
[1643337266894,3.07996447,90.115,90.031,27.68871338]
[1643337267091,3.07996447,90.115,90.041,6.0]
[1643337267291,3.07996447,90.117,90.042,0.25]
[1643337267589,3.07996447,90.117,90.05,16.02]
[1643337267889,3.33320186,90.116,90.051,0.25]
[1643337268090,3.08320186,90.115,90.06,6.0]
[1643337268291,0.2,90.138,90.06,6.0]
[1643337268292,3.07996447,90.127,90.061,10.6228916]
[1643337268490,3.07659616,90.158,90.061,10.6228916]
[1643337268692,1.57121819,90.163,90.072,111.2]
[1643337268892,1.57121819,90.196,90.08,16.02]
[1643337269091,1.57121819,90.196,90.09,6.0]
[1643337269290,43.5623397,90.195,90.1,16.02]
[1643337269495,0.2,90.194,90.11,6.0]
[1643337269691,0.2,90.194,90.111,10.3728916]
[1643337269993,0.2,90.194,90.121,6.0]
[1643337270193,0.2,90.219,90.121,6.0]
[1643337270391,6.0,90.21,90.122,0.25]
[1643337270591,6.0,90.21,90.13,6.0]
[1643337270793,38.06850978,90.213,90.131,20.27016908]
[1643337270992,0.2,90.212,90.141,6.0]
[1643337271192,38.06850978,90.213,90.141,5.8]
[1643337271394,0.25,90.212,90.142,0.25]
[1643337271792,0.25,90.219,90.142,0.25]
[1643337272192,16.6464,90.24,90.142,0.25]
[1643337272397,39.46453928,90.225,90.143,2.00052192]
[1643337272592,16.6464,90.24,90.143,2.00052192]
[1643337272794,16.6464,90.24,90.144,0.25]
[1643337273193,16.6464,90.24,90.15,16.02]
[1643337273395,16.6464,90.24,90.151,0.25]
[1643337273592,46.75972365,90.239,90.16,6.0]
[1643337273994,46.75972365,90.239,90.161,6.0]
[1643337274396,0.25,90.238,90.161,6.0]
[1643337274793,0.25,90.244,90.161,6.0]
[1643337275394,47.42466362,90.244,90.161,6.0]
[1643337275594,47.42466362,90.244,90.171,20.02016908]
[1643337275793,6.0,90.245,90.172,0.25]
[1643337276396,6.0,90.245,90.171,20.02016908]
[1643337276794,45.50896998,90.244,90.181,6.0]
[1643337276997,6.0,90.234,90.171,20.02016908]
[1643337277198,6.0,90.234,90.172,0.25]
[1643337277400,0.25,90.233,90.172,0.25]
[1643337277597,0.25,90.233,90.181,6.0]
[1643337277899,0.25,90.233,90.171,20.02016908]
[1643337278297,40.99454046,90.244,90.171,20.02016908]
[1643337278496,6.0,90.234,90.171,20.02016908]
[1643337278897,0.25,90.233,90.171,20.02016908]
[1643337280199,0.25,90.233,90.14,16.02]
[1643337280400,65.0,90.231,90.122,24.3394]
[1643337280599,111.2,90.22,90.07,16.02]
[1643337280799,16.02,90.21,90.06,16.02]
[1643337281000,150.5353,90.209,90.05,32.9595]
[1643337281198,47.99239886,90.208,90.051,26.52562086]
[1643337281401,16.6543,90.18,90.051,26.52562086]
[1643337281598,6.0,90.17,90.051,26.52562086]
[1643337281800,0.25,90.169,90.051,26.52562086]
[1643337282001,6.0,90.169,90.061,6.0]
[1643337282700,6.0,90.169,90.062,0.25]
[1643337283302,0.25,90.168,90.062,0.25]
[1643337284004,25.0783,90.168,90.07,6.0]
[1643337284203,0.2,90.167,90.071,4.11743982]
[1643337284403,6.0,90.158,90.071,4.36743982]
[1643337284602,6.2,90.158,90.071,4.36743982]
[1643337284827,0.25,90.157,90.071,4.36743982]
[1643337286602,0.25,90.157,90.081,6.0]
[1643337286804,0.45,90.167,90.082,0.25]
[1643337288503,0.45,90.167,90.082,111.45]
[1643337288504,0.2,90.167,90.082,111.45]
[1643337288903,0.2,90.167,90.092,6.0]
[1643337289108,0.2,90.167,90.093,26.52562086]
[1643337289304,0.2,90.167,90.093,26.77562086]
[1643337289705,0.45,90.167,90.093,26.77562086]
[1643337289907,0.45,90.167,90.103,6.0]
[1643337290305,0.2,90.167,90.104,0.25]
[1643337291304,0.2,90.167,90.094,0.25]
[1643337291705,0.45,90.167,90.094,0.25]
[1643337292208,0.2,90.167,90.094,0.25]
[1643337293207,0.2,90.167,90.103,6.0]
[1643337293408,0.2,90.178,90.104,0.25]
[1643337293609,6.0,90.169,90.104,0.25]
[1643337293809,0.2,90.178,90.104,0.25]
[1643337294009,1.51167396,90.185,90.104,0.25]
[1643337294209,1.51167396,90.201,90.105,111.2]
[1643337294409,1.51167396,90.215,90.12,16.02]
[1643337294608,1.51167396,90.218,90.13,6.0]
[1643337294808,1.51167396,90.216,90.14,16.02]
[1643337295009,1.51167396,90.208,90.15,6.0]
[1643337295211,1.51167396,90.216,90.15,6.0]
[1643337295409,1.51167396,90.216,90.151,0.25]
[1643337295608,1.51167396,90.217,90.151,6.25]
[1643337295812,1.51167396,90.218,90.161,24.9116812]
[1643337296108,1.51167396,90.22,90.171,6.0]
[1643337296409,1.51167396,90.221,90.172,0.25]
[1643337296809,1.51167396,90.214,90.172,0.25]
[1643337297011,1.51167396,90.213,90.172,0.25]
[1643337297613,1.51167396,90.213,90.172,0.15]
[1643337298111,6.0,90.236,90.172,0.15]
[1643337298112,1.51167396,90.215,90.172,0.15]
[1643337298311,1.51167396,90.218,90.172,0.15]
[1643337298513,1.53588235,90.219,90.172,0.15]
[1643337299012,1.53588235,90.219,90.181,4.21970552]
[1643337299214,1.53588235,90.22,90.181,10.31970552]
[1643337299413,1.53588235,90.219,90.182,0.35]
[1643337299613,1.53588235,90.219,90.191,6.0]
[1643337299832,1.53588235,90.221,90.192,0.25]
[1643337300033,1.53588235,90.222,90.192,0.25]
[1643337300236,1.53588235,90.223,90.192,0.25]
[1643337300633,1.53588235,90.227,90.192,0.25]
[1643337301033,1.53588235,90.228,90.192,0.25]
[1643337301233,6.0,90.236,90.192,0.25]
[1643337301234,1.53588235,90.227,90.192,0.25]
[1643337301434,1.53588235,90.226,90.191,6.0]
[1643337301635,1.53588235,90.227,90.192,0.25]
[1643337302033,1.53588235,90.228,90.192,0.25]
[1643337302634,1.53588235,90.23,90.192,0.25]
[1643337303040,0.1,90.254,90.192,0.25]
[1643337303437,0.35,90.254,90.192,0.25]
[1643337304240,0.1,90.289,90.192,0.25]
[1643337304443,0.1,90.289,90.192,111.45]
[1643337304641,0.1,90.291,90.202,6.0]
[1643337304842,0.1,90.291,90.203,0.25]
[1643337305145,0.1,90.291,90.21,6.0]
[1643337305447,0.1,90.291,90.211,0.25]
[1643337305747,0.35,90.291,90.214,6.0]
[1643337306141,0.35,90.291,90.215,0.25]
[1643337306341,0.35,90.291,90.215,111.45]
[1643337306543,6.0,90.282,90.225,6.0]
[1643337307042,0.25,90.281,90.226,0.25]
[1643337307544,0.25,90.281,90.226,4.46970552]
[1643337307746,0.25,90.281,90.226,4.56970552]
[1643337307946,0.25,90.281,90.236,6.0]
[1643337308348,0.25,90.281,90.237,0.25]
[1643337308747,0.35,90.295,90.237,0.25]
[1643337309247,0.35,90.295,90.227,0.25]
[1643337309647,6.0,90.286,90.227,0.25]
[1643337309853,0.25,90.285,90.227,0.25]
[1643337310647,0.25,90.285,90.236,6.0]
[1643337311251,0.25,90.285,90.237,0.25]
[1643337311652,6.0,90.286,90.237,0.25]
[1643337313359,0.25,90.285,90.237,0.25]
[1643337314256,0.1,90.295,90.237,0.25]
[1643337314556,72.8219,90.33,90.237,111.45]
[1643337314755,72.8219,90.33,90.237,0.25]
[1643337314954,72.8219,90.33,90.247,6.0]
[1643337315354,72.8219,90.33,90.248,16.48660036]
[1643337315557,6.0,90.32,90.258,6.0]
[1643337315756,6.0,90.32,90.248,16.23660036]
[1643337315956,6.0,90.319,90.248,16.23660036]
[1643337316356,0.25,90.318,90.248,16.23660036]
[1643337316556,40.6908783,90.329,90.248,16.23660036]
[1643337316757,37.73418688,90.329,90.249,111.45]
[1643337316957,72.8219,90.33,90.249,113.45417486]
[1643337317158,72.8219,90.33,90.25,2.00417486]
[1643337317560,72.8219,90.33,90.248,16.23660036]
[1643337317762,111.45,90.329,90.248,16.23660036]
[1643337317962,37.64020024,90.319,90.248,16.23660036]
[1643337318162,43.64020024,90.319,90.248,16.23660036]
[1643337318363,0.25,90.318,90.248,16.23660036]
[1643337319194,0.25,90.318,90.249,0.25]
[1643337320494,0.25,90.318,90.25,2.00417486]
[1643337320694,0.25,90.318,90.258,6.0]
[1643337320894,0.25,90.318,90.259,0.25]
[1643337321198,0.25,90.318,90.26,6.0]
[1643337321395,6.0,90.325,90.25,2.00417486]
[1643337321396,40.43913113,90.324,90.25,2.00417486]
[1643337321595,6.0,90.314,90.248,16.23660036]
[1643337321795,111.45,90.313,90.248,16.23660036]
[1643337321995,6.0,90.303,90.248,16.23660036]
[1643337322394,0.25,90.302,90.248,16.23660036]
[1643337322594,6.0,90.295,90.248,16.23660036]
[1643337322796,0.25,90.294,90.248,16.23660036]
[1643337324097,0.25,90.309,90.248,16.23660036]
[1643337324296,44.09192949,90.309,90.248,16.23660036]
[1643337324498,6.0,90.299,90.248,16.23660036]
[1643337324798,0.25,90.298,90.248,16.23660036]
[1643337326306,0.25,90.298,90.17,16.6307]
[1643337326504,71.0,90.297,90.183,16.397]
[1643337326701,0.3241118,90.274,90.14,16.02]
[1643337326902,16.02,90.27,90.13,16.2775]
[1643337327101,6.0,90.26,90.13,16.2775]
[1643337327301,16.6428,90.24,90.131,18.20986521]
[1643337327500,6.0,90.23,90.131,18.20986521]
[1643337327700,61.4972,90.23,90.131,18.20986521]
[1643337327900,6.25,90.229,90.131,18.20986521]
[1643337328100,48.52521515,90.219,90.131,18.20986521]
[1643337328300,111.45,90.218,90.131,18.20986521]
[1643337328502,16.6507,90.2,90.131,18.20986521]
[1643337328801,38.02331971,90.199,90.131,18.20986521]
[1643337329003,6.0,90.189,90.131,18.20986521]
[1643337329501,0.25,90.188,90.131,18.20986521]
[1643337330099,6.0,90.207,90.132,0.25]
[1643337330903,35.02120605,90.206,90.131,18.20986521]
[1643337331103,6.0,90.196,90.131,18.20986521]